[Event "Live Chess"]
[Site "Chess.com"]
[Date "2021.09.10"]
[Round "3"]
[White "zandor2323"]
[Black "fiddleleaf"]
[Result "0-1"]
[CurrentPosition "8/5kpp/5p2/8/4qK2/p1n3RP/r5P1/3q4 w - -"]
[Timezone "UTC"]
[ECO "B10"]
[ECOUrl "https://www.chess.com/openings/Caro-Kann-Defense-2.Nc3-d5"]
[UTCDate "2021.09.10"]
[UTCTime "01:30:28"]
[WhiteElo "1290"]
[BlackElo "1574"]
[TimeControl "2100+5"]
[Termination "fiddleleaf won by checkmate"]
[StartTime "01:30:28"]
[EndDate "2021.09.10"]
[EndTime "02:27:13"]
[Link "https://www.chess.com/game/live/24976284351"]

1. e4 {[%clk 0:34:43.2]} 1... c6 {[%clk 0:35:00.6]} 2. Nc3 {[%clk 0:34:38.9]} 2... d5 {[%clk 0:35:03.4]} 3. e5 {[%clk 0:34:24.9]} 3... Bf5 {[%clk 0:34:47.5]} 4. d4 {[%clk 0:34:06.2]} 4... e6 {[%clk 0:34:48.8]} 5. Nf3 {[%clk 0:33:53.4]} 5... c5 {[%clk 0:34:41.2]} 6. dxc5 {[%clk 0:33:31.9]} 6... Bxc5 {[%clk 0:34:30.5]} 7. Be3 {[%clk 0:32:55.8]} 7... Bxe3 {[%clk 0:33:48.8]} 8. fxe3 {[%clk 0:32:57.1]} 8... Qb6 {[%clk 0:31:09.3]} 9. Bb5+ {[%clk 0:32:05.7]} 9... Nc6 {[%clk 0:30:24.6]} 10. Bxc6+ {[%clk 0:31:37.3]} 10... bxc6 {[%clk 0:30:09.8]} 11. Qc1 {[%clk 0:31:36.6]} 11... Ne7 {[%clk 0:29:56.4]} 12. O-O {[%clk 0:31:22.3]} 12... Ng6 {[%clk 0:29:32.8]} 13. Ne2 {[%clk 0:29:00]} 13... O-O {[%clk 0:28:52.8]} 14. h3 {[%clk 0:27:54.9]} 14... Be4 {[%clk 0:28:23.5]} 15. Ng3 {[%clk 0:27:37.7]} 15... Bxf3 {[%clk 0:27:02.1]} 16. Rxf3 {[%clk 0:27:12.7]} 16... Nxe5 {[%clk 0:26:34.3]} 17. Rf4 {[%clk 0:26:32.9]} 17... Nc4 {[%clk 0:26:19.8]} 18. Nf1 {[%clk 0:25:51.7]} 18... Qxb2 {[%clk 0:24:52.5]} 19. Qxb2 {[%clk 0:25:02]} 19... Nxb2 {[%clk 0:24:54.2]} 20. Nd2 {[%clk 0:24:49.8]} 20... Rab8 {[%clk 0:23:48.5]} 21. Rb1 {[%clk 0:24:17.6]} 21... e5 {[%clk 0:22:46]} 22. Rf2 {[%clk 0:22:54.7]} 22... a5 {[%clk 0:21:49.4]} 23. Nb3 {[%clk 0:22:24.8]} 23... Nc4 {[%clk 0:21:33.5]} 24. Re1 {[%clk 0:21:16.3]} 24... Rfe8 {[%clk 0:19:55.4]} 25. c3 {[%clk 0:21:05.8]} 25... Rb5 {[%clk 0:19:17.1]} 26. e4 {[%clk 0:19:55.9]} 26... a4 {[%clk 0:18:50.8]} 27. Nc1 {[%clk 0:19:46.8]} 27... Rb1 {[%clk 0:17:50]} 28. Ref1 {[%clk 0:19:10.6]} 28... f6 {[%clk 0:17:15.2]} 29. exd5 {[%clk 0:18:29.7]} 29... cxd5 {[%clk 0:17:12.5]} 30. Rd1 {[%clk 0:18:20.7]} 30... Rd8 {[%clk 0:16:29.3]} 31. Kh2 {[%clk 0:18:20.9]} 31... Nb2 {[%clk 0:15:16]} 32. Rdd2 {[%clk 0:18:06.9]} 32... Nc4 {[%clk 0:14:42.5]} 33. Rc2 {[%clk 0:18:02.1]} 33... Ne3 {[%clk 0:14:09.3]} 34. Rb2 {[%clk 0:17:52.7]} 34... Rxc1 {[%clk 0:13:55.1]} 35. Rb7 {[%clk 0:17:17.1]} 35... Rxc3 {[%clk 0:13:00.9]} 36. Rfb2 {[%clk 0:16:59.6]} 36... d4 {[%clk 0:12:02.1]} 37. Rb8 {[%clk 0:16:28.5]} 37... Rxb8 {[%clk 0:11:58.6]} 38. Rxb8+ {[%clk 0:16:30.3]} 38... Kf7 {[%clk 0:12:02.2]} 39. Rb7+ {[%clk 0:16:33.3]} 39... Kg6 {[%clk 0:12:05.5]} 40. Rb4 {[%clk 0:16:14.2]} 40... Ra3 {[%clk 0:11:56.1]} 41. Rb2 {[%clk 0:16:13.3]} 41... Nd1 {[%clk 0:11:47.1]} 42. Rd2 {[%clk 0:16:08.3]} 42... Nc3 {[%clk 0:11:49.4]} 43. Rb2 {[%clk 0:16:01.1]} 43... Rxa2 {[%clk 0:11:46.5]} 44. Rb4 {[%clk 0:15:47]} 44... a3 {[%clk 0:11:39.8]} 45. Rb3 {[%clk 0:15:31.7]} 45... e4 {[%clk 0:11:23.9]} 46. Kg1 {[%clk 0:15:03.5]} 46... e3 {[%clk 0:11:21.8]} 47. Rb4 {[%clk 0:14:47.2]} 47... e2 {[%clk 0:11:19.7]} 48. Kf2 {[%clk 0:14:46.2]} 48... d3 {[%clk 0:10:55.8]} 49. Rd4 {[%clk 0:13:49.8]} 49... d2 {[%clk 0:10:40]} 50. Rg4+ {[%clk 0:13:09.6]} 50... Kf7 {[%clk 0:10:40.6]} 51. Rg3 {[%clk 0:12:08.2]} 51... e1=Q+ {[%clk 0:10:28.1]} 52. Kf3 {[%clk 0:12:04.2]} 52... d1=Q+ {[%clk 0:10:30.3]} 53. Kf4 {[%clk 0:12:02.8]} 53... Qe4# {[%clk 0:10:29.5]} 0-1

[Event "Live Chess"]
[Site "Chess.com"]
[Date "2021.09.10"]
[Round "3"]
[White "CoachJoeF"]
[Black "vincitore51745"]
[Result "1-0"]
[CurrentPosition "1R3bk1/3b3p/p2Qp1p1/q1pp1p2/3P4/2P2N2/P5PP/6K1 b - -"]
[Timezone "UTC"]
[ECO "B23"]
[ECOUrl "https://www.chess.com/openings/Sicilian-Defense-Grand-Prix-Attack-3...e6"]
[UTCDate "2021.09.10"]
[UTCTime "01:31:47"]
[WhiteElo "1494"]
[BlackElo "524"]
[TimeControl "2100+5"]
[Termination "CoachJoeF won by resignation"]
[StartTime "01:31:47"]
[EndDate "2021.09.10"]
[EndTime "02:01:13"]
[Link "https://www.chess.com/game/live/24976295913"]

1. e4 {[%clk 0:34:36.4]} 1... c5 {[%clk 0:34:59.2]} 2. Nc3 {[%clk 0:34:01.6]} 2... e6 {[%clk 0:34:37.9]} 3. f4 {[%clk 0:33:33.6]} 3... Nc6 {[%clk 0:34:13.2]} 4. Nf3 {[%clk 0:32:52.7]} 4... Nf6 {[%clk 0:34:06.8]} 5. Bb5 {[%clk 0:32:17]} 5... a6 {[%clk 0:33:43.1]} 6. Bxc6 {[%clk 0:32:17.4]} 6... bxc6 {[%clk 0:33:28.7]} 7. e5 {[%clk 0:32:19.8]} 7... Nd5 {[%clk 0:33:21.9]} 8. d3 {[%clk 0:32:21.6]} 8... Nxc3 {[%clk 0:33:13.8]} 9. bxc3 {[%clk 0:32:24.4]} 9... d6 {[%clk 0:32:47.3]} 10. d4 {[%clk 0:30:22]} 10... cxd4 {[%clk 0:32:16.9]} 11. cxd4 {[%clk 0:30:23]} 11... d5 {[%clk 0:32:10.1]} 12. O-O {[%clk 0:30:12.9]} 12... Be7 {[%clk 0:31:24]} 13. Qe1 {[%clk 0:30:01.2]} 13... O-O {[%clk 0:31:15.4]} 14. Qg3 {[%clk 0:29:49]} 14... Rb8 {[%clk 0:30:14.8]} 15. f5 {[%clk 0:29:23.3]} 15... exf5 {[%clk 0:28:38.5]} 16. Bh6 {[%clk 0:29:27.3]} 16... g6 {[%clk 0:26:16.7]} 17. Bxf8 {[%clk 0:29:27.2]} 17... Bxf8 {[%clk 0:26:12.4]} 18. c3 {[%clk 0:29:20.4]} 18... c5 {[%clk 0:26:13.3]} 19. Rab1 {[%clk 0:28:15.9]} 19... Rxb1 {[%clk 0:25:42]} 20. Rxb1 {[%clk 0:28:16.8]} 20... Qa5 {[%clk 0:25:43.7]} 21. Rb8 {[%clk 0:25:54.2]} 21... Bd7 {[%clk 0:25:34.4]} 22. e6 {[%clk 0:25:28.4]} 22... fxe6 {[%clk 0:25:03.7]} 23. Qd6 {[%clk 0:25:16.1]} 1-0

[Event "Live Chess"]
[Site "Chess.com"]
[Date "2021.09.10"]
[Round "3"]
[White "chuckchess"]
[Black "victor6688"]
[Result "1/2-1/2"]
[CurrentPosition "8/8/8/4b3/6k1/7p/8/6K1 b - -"]
[Timezone "UTC"]
[ECO "D86"]
[ECOUrl "https://www.chess.com/openings/Grunfeld-Defense-Exchange-Classical-Variation-7...c5"]
[UTCDate "2021.09.10"]
[UTCTime "01:37:37"]
[WhiteElo "1426"]
[BlackElo "1161"]
[TimeControl "2100+5"]
[Termination "Game drawn by agreement"]
[StartTime "01:37:37"]
[EndDate "2021.09.10"]
[EndTime "02:56:24"]
[Link "https://www.chess.com/game/live/24976859799"]

1. d4 {[%clk 0:35:03.2]} 1... Nf6 {[%clk 0:35:01.4]} 2. c4 {[%clk 0:34:47.5]} 2... g6 {[%clk 0:34:42.1]} 3. Nc3 {[%clk 0:34:43.5]} 3... d5 {[%clk 0:34:06.8]} 4. cxd5 {[%clk 0:34:37.3]} 4... Nxd5 {[%clk 0:33:32.1]} 5. e4 {[%clk 0:34:39.4]} 5... Nxc3 {[%clk 0:33:21.6]} 6. bxc3 {[%clk 0:34:41.6]} 6... Bg7 {[%clk 0:33:10.1]} 7. Bc4 {[%clk 0:34:07.6]} 7... c5 {[%clk 0:31:58.4]} 8. Ne2 {[%clk 0:34:01.7]} 8... Qa5 {[%clk 0:28:56.9]} 9. Bd2 {[%clk 0:33:12.9]} 9... Bd7 {[%clk 0:26:02.1]} 10. O-O {[%clk 0:32:40.4]} 10... O-O {[%clk 0:23:11.9]} 11. e5 {[%clk 0:31:27.8]} 11... Qc7 {[%clk 0:22:04]} 12. Bf4 {[%clk 0:30:49.3]} 12... cxd4 {[%clk 0:20:42.4]} 13. Bxf7+ {[%clk 0:29:23.1]} 13... Kh8 {[%clk 0:19:30.9]} 14. cxd4 {[%clk 0:28:41.7]} 14... e6 {[%clk 0:18:27.8]} 15. Bxe6 {[%clk 0:27:51.8]} 15... Bxe6 {[%clk 0:18:10.4]} 16. d5 {[%clk 0:27:47.4]} 16... Rd8 {[%clk 0:17:30.2]} 17. d6 {[%clk 0:26:49.4]} 17... Qc5 {[%clk 0:16:28.6]} 18. Rc1 {[%clk 0:26:22.1]} 18... Qb5 {[%clk 0:14:53]} 19. Nd4 {[%clk 0:25:51.5]} 19... Qd5 {[%clk 0:13:46.8]} 20. Nxe6 {[%clk 0:23:16.2]} 20... Qxe6 {[%clk 0:13:41.2]} 21. Re1 {[%clk 0:22:27.7]} 21... Nc6 {[%clk 0:12:10.8]} 22. Qb3 {[%clk 0:20:08.3]} 22... Nd4 {[%clk 0:10:40.9]} 23. Qxb7 {[%clk 0:18:26.4]} 23... Qxa2 {[%clk 0:10:30.6]} 24. Qe4 {[%clk 0:14:10]} 24... Nf5 {[%clk 0:09:00.8]} 25. Rc2 {[%clk 0:12:01.3]} 25... Qf7 {[%clk 0:08:26.2]} 26. Rc7 {[%clk 0:09:58.9]} 26... Qe8 {[%clk 0:07:34.8]} 27. g4 {[%clk 0:08:40.8]} 27... Nh4 {[%clk 0:06:47.9]} 28. e6 {[%clk 0:06:54.8]} 28... g5 {[%clk 0:04:40.4]} 29. Bg3 {[%clk 0:04:23.8]} 29... Ng6 {[%clk 0:04:08.8]} 30. e7 {[%clk 0:02:39.8]} 30... Rdb8 {[%clk 0:03:35.7]} 31. d7 {[%clk 0:02:38.4]} 31... Qxe7 {[%clk 0:02:34.2]} 32. Qxe7 {[%clk 0:02:33.4]} 32... Nxe7 {[%clk 0:02:37.4]} 33. Rxe7 {[%clk 0:02:35.5]} 33... a5 {[%clk 0:02:36.1]} 34. Rc8+ {[%clk 0:02:19.5]} 34... Rxc8 {[%clk 0:02:30.5]} 35. dxc8=Q+ {[%clk 0:02:14.6]} 35... Rxc8 {[%clk 0:02:27.8]} 36. Ra7 {[%clk 0:02:16.3]} 36... Bc3 {[%clk 0:02:06.8]} 37. f4 {[%clk 0:02:03]} 37... gxf4 {[%clk 0:01:40.2]} 38. Bxf4 {[%clk 0:02:06.3]} 38... Rc4 {[%clk 0:01:40.4]} 39. Bg3 {[%clk 0:01:54.6]} 39... a4 {[%clk 0:01:42.9]} 40. Ra6 {[%clk 0:01:32.9]} 40... Bd4+ {[%clk 0:01:45.5]} 41. Kg2 {[%clk 0:01:34.5]} 41... Rc2+ {[%clk 0:01:44.7]} 42. Kh3 {[%clk 0:01:34.5]} 42... Ra2 {[%clk 0:01:45.8]} 43. Bd6 {[%clk 0:01:18.7]} 43... a3 {[%clk 0:01:38.2]} 44. Bxa3 {[%clk 0:01:18.5]} 44... Bc5 {[%clk 0:01:36.5]} 45. Ra8+ {[%clk 0:01:08.8]} 45... Kg7 {[%clk 0:01:39.1]} 46. Ra4 {[%clk 0:01:03.5]} 46... Rxa3+ {[%clk 0:01:41.9]} 47. Rxa3 {[%clk 0:01:03]} 47... Bxa3 {[%clk 0:01:45.6]} 48. Kh4 {[%clk 0:01:07]} 48... Bd6 {[%clk 0:01:48.8]} 49. Kg5 {[%clk 0:01:06]} 49... Bxh2 {[%clk 0:01:48]} 50. Kf5 {[%clk 0:01:07.3]} 50... Kh6 {[%clk 0:01:48.4]} 51. Kf6 {[%clk 0:01:04.9]} 51... Bf4 {[%clk 0:01:51.3]} 52. Kf5 {[%clk 0:01:06.9]} 52... Bc7 {[%clk 0:01:43.5]} 53. Kf6 {[%clk 0:01:06.4]} 53... Bd8+ {[%clk 0:01:47.1]} 54. Kf5 {[%clk 0:01:09.9]} 54... Kg7 {[%clk 0:01:50.2]} 55. g5 {[%clk 0:01:10.2]} 55... Kf7 {[%clk 0:01:50.3]} 56. Kg4 {[%clk 0:01:11.1]} 56... Kg6 {[%clk 0:01:54]} 57. Kh3 {[%clk 0:01:07.9]} 57... Bxg5 {[%clk 0:01:57.4]} 58. Kg2 {[%clk 0:01:10.8]} 58... h5 {[%clk 0:02:01.2]} 59. Kh1 {[%clk 0:01:14.5]} 59... Bf4 {[%clk 0:02:05.2]} 60. Kg2 {[%clk 0:01:18.6]} 60... Kg5 {[%clk 0:02:09.5]} 61. Kh1 {[%clk 0:01:22.8]} 61... h4 {[%clk 0:02:10.1]} 62. Kg2 {[%clk 0:01:26.8]} 62... Kg4 {[%clk 0:02:13.8]} 63. Kh1 {[%clk 0:01:30.8]} 63... h3 {[%clk 0:02:14.8]} 64. Kg1 {[%clk 0:01:33]} 64... Be3+ {[%clk 0:01:55.2]} 65. Kh1 {[%clk 0:01:36.3]} 65... Bf4 {[%clk 0:01:55.4]} 66. Kg1 {[%clk 0:01:38.5]} 66... Kg3 {[%clk 0:01:59.5]} 67. Kh1 {[%clk 0:01:41.9]} 67... Be5 {[%clk 0:01:59.2]} 68. Kg1 {[%clk 0:01:43.2]} 68... Kf3 {[%clk 0:01:54.7]} 69. Kh1 {[%clk 0:01:46.4]} 69... Kg4 {[%clk 0:01:43.4]} 70. Kg1 {[%clk 0:01:50]} 1/2-1/2

[Event "Live Chess"]
[Site "Chess.com"]
[Date "2021.09.10"]
[Round "3"]
[White "MrRap9"]
[Black "Raindog2"]
[Result "0-1"]
[CurrentPosition "6k1/p1p5/8/3p1pp1/8/P2q1PK1/1P6/8 w - -"]
[Timezone "UTC"]
[ECO "C47"]
[ECOUrl "https://www.chess.com/openings/Four-Knights-Game-Gunsberg-Variation"]
[UTCDate "2021.09.10"]
[UTCTime "01:30:53"]
[WhiteElo "1055"]
[BlackElo "1339"]
[TimeControl "2100+5"]
[Termination "Raindog2 won by resignation"]
[StartTime "01:30:53"]
[EndDate "2021.09.10"]
[EndTime "02:14:39"]
[Link "https://www.chess.com/game/live/24976287421"]

1. e4 {[%clk 0:34:40.6]} 1... e5 {[%clk 0:35:00.2]} 2. Nf3 {[%clk 0:34:40.8]} 2... Nc6 {[%clk 0:35:02.1]} 3. Nc3 {[%clk 0:34:42.2]} 3... Nf6 {[%clk 0:33:56.4]} 4. a3 {[%clk 0:34:41.2]} 4... Bc5 {[%clk 0:32:27.8]} 5. Nxe5 {[%clk 0:34:32.1]} 5... Bd4 {[%clk 0:29:46.4]} 6. Nxc6 {[%clk 0:34:29.5]} 6... bxc6 {[%clk 0:29:50.5]} 7. Ne2 {[%clk 0:34:06.5]} 7... Bxf2+ {[%clk 0:29:03.8]} 8. Kxf2 {[%clk 0:33:48.3]} 8... Nxe4+ {[%clk 0:29:06.3]} 9. Kg1 {[%clk 0:33:21.4]} 9... d5 {[%clk 0:28:03.3]} 10. Qe1 {[%clk 0:33:26.3]} 10... O-O {[%clk 0:27:31.7]} 11. d3 {[%clk 0:33:27.3]} 11... Nd6 {[%clk 0:26:22.6]} 12. Qg3 {[%clk 0:33:19.3]} 12... Qf6 {[%clk 0:26:02.8]} 13. Qg5 {[%clk 0:33:07.8]} 13... Qe6 {[%clk 0:25:39.7]} 14. Qe3 {[%clk 0:32:48]} 14... Qd7 {[%clk 0:23:40.8]} 15. h3 {[%clk 0:32:49.9]} 15... Re8 {[%clk 0:22:49.8]} 16. Qg3 {[%clk 0:32:25.5]} 16... Re6 {[%clk 0:22:27]} 17. Nf4 {[%clk 0:32:22.9]} 17... Nf5 {[%clk 0:22:00.7]} 18. Qg5 {[%clk 0:32:18.9]} 18... Rf6 {[%clk 0:21:35.7]} 19. Be2 {[%clk 0:32:15.3]} 19... Qe7 {[%clk 0:21:02]} 20. Bd2 {[%clk 0:31:19.7]} 20... h6 {[%clk 0:18:59.9]} 21. Qg4 {[%clk 0:30:13.5]} 21... Nd4 {[%clk 0:16:29.4]} 22. Qg3 {[%clk 0:28:06]} 22... Rxf4 {[%clk 0:15:47.3]} 23. Bf3 {[%clk 0:25:46.6]} 23... Nxf3+ {[%clk 0:15:02.2]} 24. gxf3 {[%clk 0:25:44.3]} 24... Rf6 {[%clk 0:15:03.9]} 25. Kf2 {[%clk 0:25:35]} 25... Bf5 {[%clk 0:14:15.9]} 26. Rae1 {[%clk 0:25:14.3]} 26... Qd7 {[%clk 0:13:48]} 27. Re3 {[%clk 0:25:00]} 27... Re8 {[%clk 0:12:44.7]} 28. Rhe1 {[%clk 0:24:56.8]} 28... Rxe3 {[%clk 0:12:46.7]} 29. Rxe3 {[%clk 0:25:00.9]} 29... Bxh3 {[%clk 0:11:52.9]} 30. Re8+ {[%clk 0:23:31.5]} 30... Qxe8 {[%clk 0:11:49.7]} 31. Qxh3 {[%clk 0:23:31.8]} 31... Re6 {[%clk 0:11:43.8]} 32. Qf1 {[%clk 0:23:27.6]} 32... Qe7 {[%clk 0:11:12.9]} 33. Bb4 {[%clk 0:23:25.5]} 33... Qh4+ {[%clk 0:11:07.4]} 34. Kg1 {[%clk 0:23:11.2]} 34... Rg6+ {[%clk 0:11:10.6]} 35. Qg2 {[%clk 0:23:15]} 35... Rxg2+ {[%clk 0:10:58]} 36. Kxg2 {[%clk 0:23:18.7]} 36... f5 {[%clk 0:10:46.3]} 37. c3 {[%clk 0:23:08.1]} 37... Qe1 {[%clk 0:10:37.2]} 38. c4 {[%clk 0:23:06.1]} 38... Qe2+ {[%clk 0:10:34.7]} 39. Kg3 {[%clk 0:23:09.4]} 39... Qxd3 {[%clk 0:10:32.3]} 40. cxd5 {[%clk 0:23:11.2]} 40... cxd5 {[%clk 0:10:31.2]} 41. Be7 {[%clk 0:23:16.1]} 41... g5 {[%clk 0:10:20]} 42. Bxg5 {[%clk 0:23:15.6]} 42... hxg5 {[%clk 0:10:22.2]} 0-1

[Event "Live Chess"]
[Site "Chess.com"]
[Date "2021.09.10"]
[Round "3"]
[White "Bruce_Hedman"]
[Black "Greatboomer"]
[Result "0-1"]
[CurrentPosition "r1b2rk1/ppp2NBp/3p1b2/8/4N1q1/4P3/PP2KPPP/n6R w - -"]
[Timezone "UTC"]
[ECO "A80"]
[ECOUrl "https://www.chess.com/openings/Dutch-Defense-2.Bf4-e6"]
[UTCDate "2021.09.10"]
[UTCTime "01:46:53"]
[WhiteElo "1087"]
[BlackElo "889"]
[TimeControl "1800+2"]
[Termination "Greatboomer won by resignation"]
[StartTime "01:46:53"]
[EndDate "2021.09.10"]
[EndTime "02:12:10"]
[Link "https://www.chess.com/game/live/24977451641"]

1. d4 {[%clk 0:29:48.8]} 1... f5 {[%clk 0:29:59.2]} 2. Bf4 {[%clk 0:29:44.1]} 2... e6 {[%clk 0:29:43.1]} 3. e3 {[%clk 0:29:30.1]} 3... Nf6 {[%clk 0:29:43]} 4. Be2 {[%clk 0:28:43.2]} 4... Be7 {[%clk 0:29:26.8]} 5. Nf3 {[%clk 0:28:24.6]} 5... O-O {[%clk 0:29:17]} 6. Nc3 {[%clk 0:28:01.7]} 6... d6 {[%clk 0:29:09.7]} 7. Ng5 {[%clk 0:26:33.4]} 7... Nc6 {[%clk 0:28:13.7]} 8. d5 {[%clk 0:25:22.4]} 8... Nb4 {[%clk 0:27:57.2]} 9. dxe6 {[%clk 0:25:09.1]} 9... Ng4 {[%clk 0:27:17]} 10. Nf7 {[%clk 0:24:48.4]} 10... Qe8 {[%clk 0:26:55.6]} 11. Bxg4 {[%clk 0:24:20]} 11... fxg4 {[%clk 0:26:49.4]} 12. Qxg4 {[%clk 0:24:07.9]} 12... Nxc2+ {[%clk 0:26:48]} 13. Ke2 {[%clk 0:23:42.8]} 13... Nxa1 {[%clk 0:25:14.5]} 14. Bh6 {[%clk 0:19:23.9]} 14... Bf6 {[%clk 0:25:09.5]} 15. Ne4 {[%clk 0:17:58.8]} 15... Qxe6 {[%clk 0:23:46.8]} 16. Bxg7 {[%clk 0:14:47.1]} 16... Qxg4+ {[%clk 0:23:19.9]} 0-1